Workbook

Sheet Price calculator
B2: Input
C4: Firmanavn | D4: Selskab XXX
C5: Address | D5: Paradisæblevej 7
C6: Post nr. | D6: 4700 Andeby
C7: CVR.nr.
C9: DB Kode | D9: 01.11.00
C10: DB Kode navn | D10: =INDEX('DB Koder Danmark'!$B$2:$C$744,MATCH(D9,'DB Koder Danmark'!$B$2:$B$744,0),2) -> Dyrkning af korn (undtagen ris), bælgfrugter og olieholdige frø
C11: Omsætning | D11: 250000000
C12: Etableringsår | D12: 2009
C13: Etableringsmåned | D13: 03
C14: Minimum 12 mdr. på aktivt cvr.nr. | D14: Ja
C15: Antal medarbejdere | D15: 12
C16: Har kunden en igangværende retshjælpsforsikring? | D16: Ja
C18: Selvrisiko | D18: 25000
C19: Præmie | D19: =IF(D11>250000000,"Kontakt HELP for tilbud",IF(OR(D11="",D11=0),"FEJL",IF('Help sheet'!M2="x","",IF(OR(D11>120000000,D33=0),D35,D35)))) -> 38685.42362
C20: =IF(D14="nei","OBS!",IF(OR(D11>120000000,D33=0),"OBS!","")) -> OBS! | D20: =IF(D14="Nei","Kan ikke indtegnes",IF('Help sheet'!M2="x","Kan ikke indtegnes",IF(OR(D11>120000000,D33=0),"Medsend min. 3 års skadesoplysninger",""))) -> Medsend min. 3 års skadesoplysninger
C21: Vigtige præmieoplysninger | D21: OBS! Der gælder til enhver tid en minimumspræmie på kr. 3.000
B24: præmie
C26: Minimum Præmie | D26: 3000
C27: Indvendig og udvendig kerne | D27: ='Help sheet'!O18 -> 33569.00447
C28: Huslov | D28: ='Help sheet'!O21 -> 22.72770818
C29: Arbejdsret | D29: ='Help sheet'!O19 -> 5027.125094
C30: ID-tyveri | D30: ='Help sheet'!O20 -> 66.56634591
C31: Præmie før rabat | D31: =SUM(D27:D30) -> 38685.42362
C33: Rabat | D33: =INDEX('DB Koder Danmark'!$B$2:$E$744,MATCH(D9,'DB Koder Danmark'!$B$2:$B$744,0),4) -> 0
C35: Endelig præmie | D35: =IF(D33=0,IF(((1-D33)*D27)+D28+D29+D30<D26,D26,((1-D33)*D27)+D28+D29+D30),IF(((1-D33)*D27)+D28+D29+D30<D26,D26,((1-D33)*D27)+D28+D29+D30)) -> 38685.42362
C38: =IF(OR(D33=0,D11>=120000000,),"Må forhåndsgodkendes af HELP!","") -> Må forhåndsgodkendes af HELP!

Sheet Help sheet (hidden)
A1: Sales channel drop down | C1: Deductible drop down | E1: Minimum 12 måneder | G1: Year drop down | J1: Month drop down | K1: minimum premium | M1: Check if not valid to cover branch
A2: Hard bundled | C2: 5000 | E2: Ja | F2: =YEAR(TODAY()) -> 2025 | G2: =F2 -> 2025 | J2: 01 | K2: 3000 | M2: =INDEX('DB Koder Danmark'!$B$2:$F$744,MATCH('Price calculator'!D9,'DB Koder Danmark'!$B$2:$B$744,0),5) -> 0 | W2: PREMIUM LEVEL | X2: Inside and outside core Sales channel = Add-on Selected | AB2: Inside and outside core Sales channel = Add-on Deductible = 5000 | AF2: Inside and outside core Sales channel = Add-on Deductible = 10 000 | AJ2: Inside and outside core Sales channel = Add-on Deductible = 25 000
A3: Add-on | C3: 10000 | E3: Nei | G3: =G2-1 -> 2024 | J3: 02
A4: Individually bought | C4: 25000 | G4: =G3-1 -> 2023 | J4: 03
G5: 2022 | J5: 04 | Q5: Turnover category | R5: Selected row | X5: Burning costs DKK | AB5: Burning costs DKK | AF5: Burning costs DKK | AJ5: Burning costs DKK
G6: 2021 | J6: 05 | Q6: 6000000 | R6: =IF($N$8<=Q6,1,0) -> 0 | T6: Turnover row selected | U6: age column selected
G7: 2020 | J7: 06 | M7: Years active | N7: =YEAR(TODAY())-'Price calculator'!$D$12 -> 16 | Q7: 12000000 | R7: =IF(AND(Q6<$N$8,$N$8<=Q7),2,0) -> 0 | T7: =SUM(R6:R14) -> 9 | U7: =IF(N7<=14,1,2) -> 2 | Y7: Age | AC7: Age | AG7: Age | AK7: Age
G8: 2019 | J8: 07 | M8: Turnover | N8: ='Price calculator'!D11 -> 250000000 | Q8: 18000000 | R8: =IF(AND(Q7<$N$8,$N$8<=Q8),3,0) -> 0 | X8: Turnover | Y8: <=14 | Z8: <=1 000 | AB8: Turnover | AC8: <=14 | AD8: <=1 000 | AF8: Turnover | AG8: <=14 | AH8: <=1 000 | AJ8: Turnover | AK8: <=14 | AL8: <=1 000
G9: 2018 | J9: 08 | M9: Deductible | N9: ='Price calculator'!D18 -> 25000 | Q9: 24000000 | R9: =IF(AND(Q8<$N$8,$N$8<=Q9),4,0) -> 0 | X9: <=6 000 000 | Y9: =IF($N$9=5000,AC9,IF($N$9=10000,AG9,AK9)) -> 3846.775236 | Z9: =IF($N$9=5000,AD9,IF($N$9=10000,AH9,AL9)) -> 2741.105471 | AB9: <=6 000 000 | AC9: 4350.813549 | AD9: 3100.26921 | AF9: <=6 000 000 | AG9: 4224.803971 | AH9: 3010.478275 | AJ9: <=6 000 000 | AK9: 3846.775236 | AL9: 2741.105471
G10: 2017 | J10: 09 | Q10: 40000000 | R10: =IF(AND(Q9<$N$8,$N$8<=Q10),5,0) -> 0 | X10: <=12 000 000 | Y10: =IF($N$9=5000,AC10,IF($N$9=10000,AG10,AK10)) -> 5193.146569 | Z10: =IF($N$9=5000,AD10,IF($N$9=10000,AH10,AL10)) -> 3700.492386 | AB10: <=12 000 000 | AC10: 5873.598291 | AD10: 4185.363433 | AF10: <=12 000 000 | AG10: 5703.485361 | AH10: 4064.145671 | AJ10: <=12 000 000 | AK10: 5193.146569 | AL10: 3700.492386
G11: 2016 | J11: 10 | Q11: 80000000 | R11: =IF(AND(Q10<$N$8,$N$8<=Q11),6,0) -> 0 | X11: <=18 000 000 | Y11: 7391.748546 | Z11: 5267.155249 | AB11: <=18 000 000 | AC11: 8360.28043 | AD11: 5957.30424 | AF11: <=18 000 000 | AG11: 8118.147459 | AH11: 5784.766992 | AJ11: <=18 000 000 | AK11: 7391.748546 | AL11: 5267.155249
G12: 2015 | J12: 11 | Q12: 120000000 | R12: =IF(AND(Q11<$N$8,$N$8<=Q12),7,0) -> 0 | X12: <=24 000 000 | Y12: 9609.27311 | Z12: 6847.301824 | AB12: <=24 000 000 | AC12: 10868.36456 | AD12: 7744.495512 | AF12: <=24 000 000 | AG12: 10553.5917 | AH12: 7520.19709 | AJ12: <=24 000 000 | AK12: 9609.27311 | AL12: 6847.301824
G13: 2014 | J13: 12 | Q13: 180000000 | R13: =IF(AND(Q12<$N$8,$N$8<=Q13),8,0) -> 0 | X13: <=40 000 000 | Y13: 11315.52195 | Z13: 8063.127483 | AB13: <=40 000 000 | AC13: 12798.18113 | AD13: 9119.629338 | AF13: <=40 000 000 | AG13: 12427.51633 | AH13: 8855.503875 | AJ13: <=40 000 000 | AK13: 11315.52195 | AL13: 8063.127483
G14: 2013 | Q14: 250000000 | R14: =IF(AND(Q13<$N$8,$N$8<=Q14),9,0) -> 9 | X14: <=80 000 000 | Y14: 18034.11311 | Z14: 12850.60943 | AB14: <=80 000 000 | AC14: 20397.10117 | AD14: 14534.40926 | AF14: <=80 000 000 | AG14: 19806.35416 | AH14: 14113.4593 | AJ14: <=80 000 000 | AK14: 18034.11311 | AL14: 12850.60943
G15: 2012 | X15: <=120 000 000 | Y15: 27051.16967 | Z15: 19275.91414 | AB15: <=120 000 000 | AC15: 30595.65175 | AD15: 21801.61389 | AF15: <=120 000 000 | AG15: 29709.53123 | AH15: 21170.18895 | AJ15: <=120 000 000 | AK15: 27051.16967 | AL15: 19275.91414
G16: 2011 | X16: <=180 000 000 | Y16: 36519.07905 | Z16: 26022.48409 | AB16: <=180 000 000 | AC16: 41304.12987 | AD16: 29432.17875 | AF16: <=180 000 000 | AG16: 40107.86716 | AH16: 28579.75508 | AJ16: <=180 000 000 | AK16: 36519.07905 | AL16: 26022.48409
G17: 2010 | X17: <=250 000 000 | Y17: 47109.61198 | Z17: 33569.00447 | AB17: <=250 000 000 | AC17: 53282.32753 | AD17: 37967.51058 | AF17: <=250 000 000 | AG17: 51739.14864 | AH17: 36867.88406 | AJ17: <=250 000 000 | AK17: 47109.61198 | AL17: 33569.00447
G18: 2009 | N18: Inside and outside core | O18: =INDEX($Y$9:$Z$17,$T$7,$U$7) -> 33569.00447
G19: 2008 | N19: Labor law | O19: =INDEX($Y$30:$Z$38,$T$7,$U$7) -> 5027.125094
G20: 2007 | N20: Id-theft | O20: =INDEX($Y$53:$Z$61,$T$7,$U$7) -> 66.56634591
G21: 2006 | N21: Rental law | O21: =INDEX($Y$73:$Z$81,$T$7,$U$7) -> 22.72770818
G22: 2005
G23: 2004 | X23: Labor law Sales channel = Add-on Selected | AB23: Labor law Sales channel = Add-on Deductible = 5 000 | AF23: Labor law Sales channel = Add-on Deductible = 10 000 | AJ23: Labor law Sales channel = Add-on Deductible = 25 000
G24: 2003
G25: 2002
G26: 2001 | X26: Burning costs DKK | AB26: Burning costs DKK | AF26: Burning costs DKK | AJ26: Burning costs DKK
G27: 2000
G28: 1999 | Y28: Age | AC28: Age | AG28: Age | AK28: Age
G29: 1998 | X29: Turnover | Y29: <=14 | Z29: <=1 000 | AB29: Turnover | AC29: <=14 | AD29: <=1 000 | AF29: Turnover | AG29: <=14 | AH29: <=1 000 | AJ29: Turnover | AK29: <=14 | AL29: <=1 000
G30: 1997 | X30: <=6 000 000 | Y30: =IF($N$9=5000,AC30,IF($N$9=10000,AG30,AK30)) -> 98.44044136 | Z30: =IF($N$9=5000,AD30,IF($N$9=10000,AH30,AL30)) -> 70.14593154 | AB30: <=6 000 000 | AC30: 111.3389735 | AD30: 79.33706822 | AF30: <=6 000 000 | AG30: 108.1143405 | AH30: 77.03928405 | AJ30: <=6 000 000 | AK30: 98.44044136 | AL30: 70.14593154
G31: 1996 | X31: <=12 000 000 | Y31: =IF($N$9=5000,AC31,IF($N$9=10000,AG31,AK31)) -> 295.3213241 | Z31: =IF($N$9=5000,AD31,IF($N$9=10000,AH31,AL31)) -> 210.4377946 | AB31: <=12 000 000 | AC31: 334.0169205 | AD31: 238.0112047 | AF31: <=12 000 000 | AG31: 324.3430214 | AH31: 231.1178522 | AJ31: <=12 000 000 | AK31: 295.3213241 | AL31: 210.4377946
G32: 1995 | X32: <=18 000 000 | Y32: 492.2022068 | Z32: 350.7296577 | AB32: <=18 000 000 | AC32: 556.6948674 | AD32: 396.6853411 | AF32: <=18 000 000 | AG32: 540.5717023 | AH32: 385.1964203 | AJ32: <=18 000 000 | AK32: 492.2022068 | AL32: 350.7296577
G33: 1994 | X33: <=24 000 000 | Y33: 689.0830895 | Z33: 491.0215208 | AB33: <=24 000 000 | AC33: 779.3728144 | AD33: 555.3594776 | AF33: <=24 000 000 | AG33: 756.8003832 | AH33: 539.2749884 | AJ33: <=24 000 000 | AK33: 689.0830895 | AL33: 491.0215208
G34: 1993 | X34: <=40 000 000 | Y34: 1050.031375 | Z34: 748.2232698 | AB34: <=40 000 000 | AC34: 1187.615717 | AD34: 846.262061 | AF34: <=40 000 000 | AG34: 1153.219632 | AH34: 821.7523632 | AJ34: <=40 000 000 | AK34: 1050.031375 | AL34: 748.2232698
G35: 1992 | X35: <=80 000 000 | Y35: 1968.808827 | Z35: 1402.918631 | AB35: <=80 000 000 | AC35: 2226.77947 | AD35: 1586.741364 | AF35: <=80 000 000 | AG35: 2162.286809 | AH35: 1540.785681 | AJ35: <=80 000 000 | AK35: 1968.808827 | AL35: 1402.918631
G36: 1991 | X36: <=120 000 000 | Y36: 3281.348045 | Z36: 2338.197718 | AB36: <=120 000 000 | AC36: 3711.299116 | AD36: 2644.568941 | AF36: <=120 000 000 | AG36: 3603.811349 | AH36: 2567.976135 | AJ36: <=120 000 000 | AK36: 3281.348045 | AL36: 2338.197718
G37: 1990 | X37: <=180 000 000 | Y37: 4922.022068 | Z37: 3507.296577 | AB37: <=180 000 000 | AC37: 5566.948674 | AD37: 3966.853411 | AF37: <=180 000 000 | AG37: 5405.717023 | AH37: 3851.964203 | AJ37: <=180 000 000 | AK37: 4922.022068 | AL37: 3507.296577
G38: 1989 | X38: <=250 000 000 | Y38: 7054.898298 | Z38: 5027.125094 | AB38: <=250 000 000 | AC38: 7979.2931 | AD38: 5685.823223 | AF38: <=250 000 000 | AG38: 7748.194399 | AH38: 5521.14869 | AJ38: <=250 000 000 | AK38: 7054.898298 | AL38: 5027.125094
G39: 1988
G40: 1987
G41: 1986
G42: 1985
G43: 1984
G44: 1983
G45: 1982
G46: 1981 | X46: ID-Theft Sales channel = Add-on Selected | AB46: ID-Theft Sales channel = Add-on Deductible = 5 000 | AF46: ID-Theft Sales channel = Add-on Deductible = 10 000 | AJ46: ID-Theft Sales channel = Add-on Deductible = 25 000
G47: 1980
G48: 1979
G49: 1978 | X49: Burning costs DKK | AB49: Burning costs DKK | AF49: Burning costs DKK | AJ49: Burning costs DKK
G50: 1977
G51: 1976 | Y51: Age | AC51: Age | AG51: Age | AK51: Age
G52: 1975 | X52: Turnover | Y52: <=14 | Z52: <=1 000 | AB52: Turnover | AC52: <=14 | AD52: <=1 000 | AF52: Turnover | AG52: <=14 | AH52: <=1 000 | AJ52: Turnover | AK52: <=14 | AL52: <=1 000
G53: 1974 | X53: <=6 000 000 | Y53: =IF($N$9=5000,AC53,IF($N$9=10000,AG53,AK53)) -> 93.41697127 | Z53: =IF($N$9=5000,AD53,IF($N$9=10000,AH53,AL53)) -> 66.56634591 | AB53: <=6 000 000 | AC53: 105.6572842 | AD53: 75.28845382 | AF53: <=6 000 000 | AG53: 102.597206 | AH53: 73.10792684 | AJ53: <=6 000 000 | AK53: 93.41697127 | AL53: 66.56634591
G54: 1973 | X54: <=12 000 000 | Y54: =IF($N$9=5000,AC54,IF($N$9=10000,AG54,AK54)) -> 93.41697127 | Z54: =IF($N$9=5000,AD54,IF($N$9=10000,AH54,AL54)) -> 66.56634591 | AB54: <=12 000 000 | AC54: 105.6572842 | AD54: 75.28845382 | AF54: <=12 000 000 | AG54: 102.597206 | AH54: 73.10792684 | AJ54: <=12 000 000 | AK54: 93.41697127 | AL54: 66.56634591
G55: 1972 | X55: <=18 000 000 | Y55: 93.41697127 | Z55: 66.56634591 | AB55: <=18 000 000 | AC55: 105.6572842 | AD55: 75.28845382 | AF55: <=18 000 000 | AG55: 102.597206 | AH55: 73.10792684 | AJ55: <=18 000 000 | AK55: 93.41697127 | AL55: 66.56634591
G56: 1971 | X56: <=24 000 000 | Y56: 93.41697127 | Z56: 66.56634591 | AB56: <=24 000 000 | AC56: 105.6572842 | AD56: 75.28845382 | AF56: <=24 000 000 | AG56: 102.597206 | AH56: 73.10792684 | AJ56: <=24 000 000 | AK56: 93.41697127 | AL56: 66.56634591
G57: 1970 | X57: <=40 000 000 | Y57: 93.41697127 | Z57: 66.56634591 | AB57: <=40 000 000 | AC57: 105.6572842 | AD57: 75.28845382 | AF57: <=40 000 000 | AG57: 102.597206 | AH57: 73.10792684 | AJ57: <=40 000 000 | AK57: 93.41697127 | AL57: 66.56634591
G58: 1969 | X58: <=80 000 000 | Y58: 93.41697127 | Z58: 66.56634591 | AB58: <=80 000 000 | AC58: 105.6572842 | AD58: 75.28845382 | AF58: <=80 000 000 | AG58: 102.597206 | AH58: 73.10792684 | AJ58: <=80 000 000 | AK58: 93.41697127 | AL58: 66.56634591
G59: 1968 | X59: <=120 000 000 | Y59: 93.41697127 | Z59: 66.56634591 | AB59: <=120 000 000 | AC59: 105.6572842 | AD59: 75.28845382 | AF59: <=120 000 000 | AG59: 102.597206 | AH59: 73.10792684 | AJ59: <=120 000 000 | AK59: 93.41697127 | AL59: 66.56634591
G60: 1967 | X60: <=180 000 000 | Y60: 93.41697127 | Z60: 66.56634591 | AB60: <=180 000 000 | AC60: 105.6572842 | AD60: 75.28845382 | AF60: <=180 000 000 | AG60: 102.597206 | AH60: 73.10792684 | AJ60: <=180 000 000 | AK60: 93.41697127 | AL60: 66.56634591
G61: 1966 | X61: <=250 000 000 | Y61: 93.41697127 | Z61: 66.56634591 | AB61: <=250 000 000 | AC61: 105.6572842 | AD61: 75.28845382 | AF61: <=250 000 000 | AG61: 102.597206 | AH61: 73.10792684 | AJ61: <=250 000 000 | AK61: 93.41697127 | AL61: 66.56634591
G62: 1965
G63: 1964
G64: 1963
G65: 1962
G66: 1961 | X66: Rental law Sales channel = add-on Selected | AB66: Rental law Sales channel = add-on Deductible = 5 000 | AF66: Rental law Sales channel = Add-on Deductible = 10 000 | AJ66: Rental law Sales channel = Add-on Deductible = 25 000
G67: 1960
G68: =G67-1 -> 1959
G69: 1958 | X69: Burning costs DKK | AB69: Burning costs DKK | AF69: Burning costs DKK | AJ69: Burning costs DKK
G70: 1957
G71: 1956 | Y71: Age | AC71: Age | AG71: Age | AK71: Age
G72: 1955 | X72: Turnover | Y72: <=14 | Z72: <=1 000 | AB72: Turnover | AC72: <=14 | AD72: <=1 000 | AF72: Turnover | AG72: <=14 | AH72: <=1 000 | AJ72: Turnover | AK72: <=14 | AL72: <=1 000
G73: 1954 | X73: <=6 000 000 | Y73: =IF($N$9=5000,AC73,IF($N$9=10000,AG73,AK73)) -> 31.89530134 | Z73: =IF($N$9=5000,AD73,IF($N$9=10000,AH73,AL73)) -> 22.72770818 | AB73: <=6 000 000 | AC73: 36.07450415 | AD73: 25.70569233 | AF73: <=6 000 000 | AG73: 35.02970345 | AH73: 24.96119629 | AJ73: <=6 000 000 | AK73: 31.89530134 | AL73: 22.72770818
G74: 1953 | X74: <=12 000 000 | Y74: =IF($N$9=5000,AC74,IF($N$9=10000,AG74,AK74)) -> 31.89530134 | Z74: =IF($N$9=5000,AD74,IF($N$9=10000,AH74,AL74)) -> 22.72770818 | AB74: <=12 000 000 | AC74: 36.07450415 | AD74: 25.70569233 | AF74: <=12 000 000 | AG74: 35.02970345 | AH74: 24.96119629 | AJ74: <=12 000 000 | AK74: 31.89530134 | AL74: 22.72770818
G75: 1952 | X75: <=18 000 000 | Y75: 31.89530134 | Z75: 22.72770818 | AB75: <=18 000 000 | AC75: 36.07450415 | AD75: 25.70569233 | AF75: <=18 000 000 | AG75: 35.02970345 | AH75: 24.96119629 | AJ75: <=18 000 000 | AK75: 31.89530134 | AL75: 22.72770818
G76: 1951 | X76: <=24 000 000 | Y76: 31.89530134 | Z76: 22.72770818 | AB76: <=24 000 000 | AC76: 36.07450415 | AD76: 25.70569233 | AF76: <=24 000 000 | AG76: 35.02970345 | AH76: 24.96119629 | AJ76: <=24 000 000 | AK76: 31.89530134 | AL76: 22.72770818
G77: 1950 | X77: <=40 000 000 | Y77: 31.89530134 | Z77: 22.72770818 | AB77: <=40 000 000 | AC77: 36.07450415 | AD77: 25.70569233 | AF77: <=40 000 000 | AG77: 35.02970345 | AH77: 24.96119629 | AJ77: <=40 000 000 | AK77: 31.89530134 | AL77: 22.72770818
G78: 1949 | X78: <=80 000 000 | Y78: 31.89530134 | Z78: 22.72770818 | AB78: <=80 000 000 | AC78: 36.07450415 | AD78: 25.70569233 | AF78: <=80 000 000 | AG78: 35.02970345 | AH78: 24.96119629 | AJ78: <=80 000 000 | AK78: 31.89530134 | AL78: 22.72770818
G79: 1948 | X79: <=120 000 000 | Y79: 31.89530134 | Z79: 22.72770818 | AB79: <=120 000 000 | AC79: 36.07450415 | AD79: 25.70569233 | AF79: <=120 000 000 | AG79: 35.02970345 | AH79: 24.96119629 | AJ79: <=120 000 000 | AK79: 31.89530134 | AL79: 22.72770818
G80: 1947 | X80: <=180 000 000 | Y80: 31.89530134 | Z80: 22.72770818 | AB80: <=180 000 000 | AC80: 36.07450415 | AD80: 25.70569233 | AF80: <=180 000 000 | AG80: 35.02970345 | AH80: 24.96119629 | AJ80: <=180 000 000 | AK80: 31.89530134 | AL80: 22.72770818
G81: 1946 | X81: <=250 000 000 | Y81: 31.89530134 | Z81: 22.72770818 | AB81: <=250 000 000 | AC81: 36.07450415 | AD81: 25.70569233 | AF81: <=250 000 000 | AG81: 35.02970345 | AH81: 24.96119629 | AJ81: <=250 000 000 | AK81: 31.89530134 | AL81: 22.72770818
G82: 1945
G83: 1944
G84: 1943
G85: 1942
G86: 1941
G87: 1940
G88: 1939
G89: 1938
G90: 1937
G91: 1936
G92: 1935
G93: 1934
G94: 1933
G95: 1932
G96: 1931
G97: 1930
G98: 1929
G99: 1928
G100: 1927
G101: 1926
G102: 1925
G103: 1924
G104: 1923
G105: 1922
G106: 1921
G107: 1920
G108: 1919
G109: 1918
G110: 1917
G111: 1916
G112: 1915
G113: 1914
G114: 1913
G115: 1912
G116: 1911
G117: 1910
G118: 1909
G119: 1908
G120: 1907
G121: 1906
G122: 1905
G123: 1904
G124: 1903
G125: 1902
G126: 1901
G127: 1900
G128: 1899
G129: 1898
G130: 1897
G131: 1896
G132: =G131-1 -> 1895
G133: 1894
G134: 1893
G135: 1892
G136: 1891
G137: 1890
G138: 1889
G139: 1888
G140: 1887
G141: 1886
G142: 1885
G143: 1884
G144: 1883
G145: 1882
G146: 1881
G147: 1880
G148: 1879
G149: 1878
G150: 1877
G151: 1876
G152: 1875
G153: 1874
G154: 1873
G155: 1872
G156: 1871
G157: 1870
G158: 1869
G159: 1868
G160: 1867
G161: 1866
G162: 1865
G163: 1864
G164: 1863
G165: 1862
G166: 1861
G167: 1860
G168: 1859
G169: 1858
G170: 1857
G171: 1856
G172: 1855
G173: 1854
G174: 1853
G175: 1852
G176: 1851
G177: 1850
G178: 1849
G179: 1848
G180: 1847
G181: 1846
G182: 1845
G183: 1844
G184: 1843
G185: 1842
G186: 1841
G187: 1840
G188: 1839
G189: 1838
G190: 1837
G191: 1836
G192: 1835
G193: 1834
G194: 1833
G195: 1832
G196: =G195-1 -> 1831

Sheet DB Koder Danmark (hidden)
A1: NB | B1: DB25 | C1: Titler | D1: 127 std | E1: Præmiereduktion | F1: Do not include
B2: 01.11.00 | C2: Dyrkning af korn (undtagen ris), bælgfrugter og olieholdige frø | D2: Landbrug og gartneri | E2: 0
B3: 01.12.00 | C3: Dyrkning af ris | D3: Landbrug og gartneri | E3: 0
B4: 01.13.00 | C4: Dyrkning af grøntsager og meloner, rødder og rodknolde | D4: Landbrug og gartneri | E4: 0
B5: 01.14.00 | C5: Dyrkning af sukkerrør | D5: Landbrug og gartneri | E5: 0
B6: 01.15.00 | C6: Dyrkning af tobak | D6: Landbrug og gartneri | E6: 0
B7: 01.16.00 | C7: Dyrkning af tekstilplanter | D7: 00.16.01 | E7: 0
B8: 01.19.00 | C8: Dyrkning af andre etårige afgrøder | D8: Landbrug og gartneri | E8: 0
B9: 01.21.00 | C9: Dyrkning af druer | D9: Landbrug og gartneri | E9: 0
B10: 01.22.00 | C10: Dyrkning af tropiske og subtropiske frugter | D10: Landbrug og gartneri | E10: 0
B11: 01.23.00 | C11: Dyrkning af citrusfrugter | D11: Landbrug og gartneri | E11: 0
B12: 01.24.00 | C12: Dyrkning af kernefrugter og stenfrugter | D12: Landbrug og gartneri | E12: 0
B13: 01.25.00 | C13: Dyrkning af andre træfrugter, bær og nødder | D13: Landbrug og gartneri | E13: 0
B14: 01.26.00 | C14: Dyrkning af olieholdige frugter | D14: Landbrug og gartneri | E14: 0
B15: 01.27.00 | C15: Dyrkning af planter til fremstilling af drikkevarer | D15: Landbrug og gartneri | E15: 0
B16: 01.28.00 | C16: Dyrkning af krydderiplanter, aromaplanter og lægeplanter | D16: Landbrug og gartneri | E16: 0
B17: 01.29.00 | C17: Dyrkning af andre flerårige afgrøder | D17: Landbrug og gartneri | E17: 0
B18: 01.30.00 | C18: Planteformering | D18: Landbrug og gartneri | E18: 0
B19: 01.41.00 | C19: Avl af malkekvæg | D19: Landbrug og gartneri | E19: 0
B20: 01.42.00 | C20: Avl af andet kvæg og bøfler | D20: Landbrug og gartneri | E20: 0
B21: 01.43.00 | C21: Avl af heste og dyr af hestefamilien | D21: Landbrug og gartneri | E21: 0
B22: 01.44.00 | C22: Avl af kameler og dyr af kamelfamilien | D22: Landbrug og gartneri | E22: 0
B23: 01.45.00 | C23: Avl af får og geder | D23: Landbrug og gartneri | E23: 0
B24: 01.46.10 | C24: Avl af smågrise | D24: Landbrug og gartneri | E24: 0
B25: 01.46.20 | C25: Produktion af slagtesvin | D25: Landbrug og gartneri | E25: 0
B26: 01.47.00 | C26: Fjerkræavl | D26: Landbrug og gartneri | E26: 0
B27: 01.48.00 | C27: Kenneler | D27: Landbrug og gartneri | E27: 0
B28: 01.48.00 | C28: Avl af pelsdyr mv. | D28: Landbrug og gartneri | E28: 0
B29: 01.50.00 | C29: Blandet drift | D29: Landbrug og gartneri | E29: 0
B30: 01.61.00 | C30: Serviceydelser i forbindelse med planteavl | D30: Landbrug og gartneri | E30: 0
B31: 01.62.00 | C31: Serviceydelser i forbindelse med husdyravl | D31: Landbrug og gartneri | E31: 0
B32: 01.63.00 | C32: Forarbejdning af afgrøder efter høst | D32: Landbrug og gartneri | E32: 0
B33: 01.63.00 | C33: Forarbejdning af frø/sædekorn til udsæd | D33: Landbrug og gartneri | E33: 0
B34: 01.70.00 | C34: Jagt, fældefangst og serviceydelser i forbindelse hermed | D34: Landbrug og gartneri | E34: 0
B35: 02.10.00 | C35: Dyrkning af træer og andre skovbrugsaktiviteter | D35: Skovbrug | E35: 0
B36: 02.20.00 | C36: Skovning | D36: Skovbrug | E36: 0
B37: 02.30.00 | C37: Indsamling af vildtvoksende forstmateriale undtagen træer | D37: Skovbrug | E37: 0
B38: 02.40.00 | C38: Serviceydelser til skovbrug | D38: Skovbrug | E38: 0
B39: 03.11.00 | C39: Havfiskeri | D39: Fiskeri | E39: 0
B40: 03.12.00 | C40: Ferskvandsfiskeri | D40: Fiskeri | E40: 0
B41: 03.21.00 | C41: Havbrug | D41: Fiskeri | E41: 0
B42: 03.22.00 | C42: Ferskvandsbrug | D42: Fiskeri | E42: 0
B43: 05.10.00 | C43: Indvinding af stenkul | D43: Indvinding af grus og sten | E43: 0
B44: 05.20.00 | C44: Indvinding af brunkul | D44: Indvinding af grus og sten | E44: 0
B45: 06.10.00 | C45: Indvinding af råolie | D45: Indvinding af olie og gas | E45: 0
B46: 06.20.00 | C46: Indvinding af naturgas | D46: Indvinding af olie og gas | E46: 0
B47: 07.10.00 | C47: Brydning af jernmalm | D47: Indvinding af grus og sten | E47: 0
B48: 07.21.00 | C48: Brydning af uran- og thoriummalme | D48: Indvinding af grus og sten | E48: 0
B49: 07.29.00 | C49: Brydning af andre ikke-jernholdige metalmalme | D49: Indvinding af grus og sten | E49: 0
B50: 08.11.00 | C50: Brydning af pynte- og bygningssten, kalksten, gips, kridt og skifer | D50: Indvinding af grus og sten | E50: 0
B51: 08.12.00 | C51: Grus- og sandgravning; indvinding af ler og kaolin | D51: Indvinding af grus og sten | E51: 0
B52: 08.91.00 | C52: Indvinding af mineraler til fremstilling af kemiske produkter og gødningsstoffer | D52: Indvinding af grus og sten | E52: 0
B53: 08.92.00 | C53: Indvinding og agglomerering af tørv | D53: Indvinding af grus og sten | E53: 0
B54: 08.93.00 | C54: Saltindvinding | D54: Indvinding af grus og sten | E54: 0
B55: 08.99.00 | C55: Anden råstofindvinding i.a.n. | D55: Indvinding af grus og sten | E55: 0
B56: 09.10.00 | C56: Serviceydelser i forbindelse med indvinding af råolie og naturgas | D56: Service til råstofindvinding | E56: 0
B57: 09.90.00 | C57: Serviceydelser i forbindelse med anden råstofindvinding | D57: Service til råstofindvinding | E57: 0
B58: 10.11.10 | C58: Forarbejdning af svinekød | D58: Slagterier | E58: 0
B59: 10.11.90 | C59: Forarbejdning af andet kød | D59: Slagterier | E59: 0
B60: 10.12.00 | C60: Forarbejdning og konservering af fjerkrækød | D60: Slagterier | E60: 0
B61: 10.13.00 | C61: Produktion af kød- og fjerkrækødprodukter | D61: Slagterier | E61: 0
B62: 10.20.10 | C62: Fremstilling af fiskemel | D62: Fiskeindustri | E62: 0
B63: 10.20.20 | C63: Forarbejdning og konservering af fisk, krebsdyr og bløddyr, undtagen fiskemel | D63: Fiskeindustri | E63: 0
B64: 10.31.00 | C64: Forarbejdning og konservering af kartofler | D64: Anden fødevareindustri | E64: 0
B65: 10.32.00 | C65: Fremstilling af frugt- og grøntsagssaft | D65: Anden fødevareindustri | E65: 0
B66: 10.39.00 | C66: Anden forarbejdning og konservering af frugt og grøntsager | D66: Anden fødevareindustri | E66: 0
B67: 10.41.00 | C67: Fremstilling af olier og fedtstoffer | D67: Anden fødevareindustri | E67: 0
B68: 10.42.00 | C68: Fremstilling af margarine o.l. spiselige fedtstoffer | D68: Anden fødevareindustri | E68: 0
B69: 10.51.00 | C69: Mejerier samt ostefremstilling | D69: Mejerier | E69: 0
B70: 10.52.00 | C70: Fremstilling af konsumis | D70: Mejerier | E70: 0
B71: 10.61.00 | C71: Fremstilling af mølleriprodukter | D71: Bagerier, brødfabrikker mv. | E71: 0
B72: 10.62.00 | C72: Fremstilling af stivelse og stivelsesprodukter | D72: Bagerier, brødfabrikker mv. | E72: 0
B73: 10.71.10 | C73: Industriel fremstilling af brød; kager mv. | D73: Bagerier, brødfabrikker mv. | E73: 0
B74: 10.71.20 | C74: Fremstilling af friske bageriprodukter | D74: Bagerier, brødfabrikker mv. | E74: 0
B75: 10.72.00 | C75: Fremstilling af tvebakker og kiks; fremstilling af konserverede kager, tærter mv. | D75: Bagerier, brødfabrikker mv. | E75: 0
B76: 10.73.00 | C76: Fremstilling af makaroni, nudler, couscous og lignende dejvarer | D76: Bagerier, brødfabrikker mv. | E76: 0
B77: 10.81.00 | C77: Fremstilling af sukker | D77: Anden fødevareindustri | E77: 0
B78: 10.82.00 | C78: Fremstilling af kakao, chokolade og sukkervarer | D78: Anden fødevareindustri | E78: 0
B79: 10.83.00 | C79: Forarbejdning af te og kaffe | D79: Anden fødevareindustri | E79: 0
B80: 10.84.00 | C80: Fremstilling af smagspræparater og krydderier | D80: Anden fødevareindustri | E80: 0
B81: 10.85.00 | C81: Fremstilling af færdigretter | D81: Anden fødevareindustri | E81: 0
B82: 10.86.00 | C82: Fremstilling af homogeniserede produkter og diætmad | D82: Anden fødevareindustri | E82: 0
B83: 10.89.00 | C83: Fremstilling af andre fødevarer i.a.n. | D83: Anden fødevareindustri | E83: 0
B84: 10.91.00 | C84: Fremstilling af færdige foderblandinger til landbrugsdyr | D84: Anden fødevareindustri | E84: 0
B85: 10.92.00 | C85: Fremstilling af færdige foderblandinger til kæledyr | D85: Anden fødevareindustri | E85: 0
B86: 11.01.00 | C86: Destillation, rektifikation og blanding af alkohol | D86: Drikkevareindustri | E86: 0
B87: 11.02.00 | C87: Fremstilling af vin af druer | D87: Drikkevareindustri | E87: 0
B88: 11.03.00 | C88: Fremstilling af cider og anden frugtvin | D88: Drikkevareindustri | E88: 0
B89: 11.04.00 | C89: Fremstilling af andre ikke-destillerede gærede drikkevarer | D89: Drikkevareindustri | E89: 0
B90: 11.05.00 | C90: Fremstilling af øl | D90: Drikkevareindustri | E90: 0
B91: 11.06.00 | C91: Fremstilling af malt | D91: Drikkevareindustri | E91: 0
B92: 11.07.00 | C92: Fremstilling af læskedrikke; fremstilling af mineralvand og andet vand på flaske | D92: Drikkevareindustri | E92: 0
B93: 12.00.00 | C93: Fremstilling af tobaksprodukter | D93: Tobaksindustri | E93: 0
B94: 13.10.00 | C94: Forbehandling og spinding af tekstilfibre | D94: Tekstilindustri | E94: 0
B95: 13.20.00 | C95: Vævning af tekstiler | D95: Tekstilindustri | E95: 0
B96: 13.30.00 | C96: Efterbehandling af tekstiler | D96: Tekstilindustri | E96: 0
B97: 13.91.00 | C97: Fremstilling af trikotagestoffer | D97: Tekstilindustri | E97: 0
B98: 13.92.00 | C98: Fremstilling af boligtekstiler | D98: Tekstilindustri | E98: 0
B99: 13.96.00 | C99: Fremstilling af færdige tekstilvarer undtagen boligtekstiler og beklædningsartikler | D99: Tekstilindustri | E99: 0
B100: 13.93.00 | C100: Fremstilling af tæpper | D100: Tekstilindustri | E100: 0
B101: 13.94.00 | C101: Fremstilling af reb, tovværk, sejlgarn og netstoffer | D101: Tekstilindustri | E101: 0
B102: 13.95.00 | C102: Fremstilling af fiberdug og varer af fiberdug undtagen beklædningsartikler | D102: Tekstilindustri | E102: 0
B103: 13.96.00 | C103: Fremstilling af andre tekniske og industrielle tekstiler | D103: Tekstilindustri | E103: 0
B104: 13.99.00 | C104: Fremstilling af andre tekstiler i.a.n. | D104: Tekstilindustri | E104: 0
B105: 14.24.00 | C105: Fremstilling af beklædningsartikler af læder | D105: Beklædningsindustri | E105: 0
B106: 14.23.00 | C106: Fremstilling af arbejdsbeklædning | D106: Beklædningsindustri | E106: 0
B107: 14.21.00 | C107: Fremstilling af anden yderbeklædning | D107: Beklædningsindustri | E107: 0
B108: 14.22.00 | C108: Fremstilling af underbeklædning | D108: Beklædningsindustri | E108: 0
B109: 14.29.00 | C109: Fremstilling af andre beklædningsartikler samt tilbehør | D109: Beklædningsindustri | E109: 0
B110: 14.24.00 | C110: Fremstilling af varer af pelsskind | D110: Beklædningsindustri | E110: 0
B111: 14.10.00 | C111: Fremstilling af strikkede og hæklede strømpevarer | D111: Beklædningsindustri | E111: 0
B112: 14.10.00 | C112: Fremstilling af andre strikkede og hæklede beklædningsartikler | D112: Beklædningsindustri | E112: 0
B113: 15.11.00 | C113: Garvning og beredning af læder; beredning og farvning af pelsskind | D113: Læder- og fodtøjsindustri | E113: 0
B114: 15.12.00 | C114: Fremstilling af tasker, kufferter, sadelmagervarer mv. | D114: Læder- og fodtøjsindustri | E114: 0
B115: 15.20.00 | C115: Fremstilling af fodtøj | D115: Læder- og fodtøjsindustri | E115: 0
B116: 16.11.00 | C116: Udsavning og høvling af træ | D116: Træindustri | E116: 0
B117: 16.21.00 | C117: Fremstilling af finerplader og træbaserede plader | D117: Træindustri | E117: 0
B118: 16.22.00 | C118: Fremstilling af sammensatte parketstave | D118: Træindustri | E118: 0
B119: 16.23.00 | C119: Fremstilling af bygningstømmer og snedkeriartikler i øvrigt | D119: Træindustri | E119: 0
B120: 16.24.00 | C120: Fremstilling af træemballage | D120: Træindustri | E120: 0
B121: 16.28.00 | C121: Fremstilling af andre træprodukter; fremstilling af varer af kork, strå og flettematerialer | D121: Træindustri | E121: 0
B122: 17.11.00 | C122: Fremstilling af papirmasse | D122: Papirindustri | E122: 0
B123: 17.12.00 | C123: Fremstilling af papir og pap | D123: Papirindustri | E123: 0
B124: 17.21.00 | C124: Fremstilling af bølgepap og pap og emballage af papir og pap | D124: Papirindustri | E124: 0
B125: 17.22.00 | C125: Fremstilling af husholdningsartikler og hygiejneartikler samt toiletartikler af papir og pap | D125: Papirindustri | E125: 0
B126: 17.23.00 | C126: Fremstilling af kontorartikler af papir | D126: Papirindustri | E126: 0
B127: 17.24.00 | C127: Fremstilling af tapet | D127: Papirindustri | E127: 0
B128: 17.25.00 | C128: Fremstilling af andre papir- og papvarer | D128: Papirindustri | E128: 0
B129: 18.11.00 | C129: Trykning af dagblade | D129: Trykkerier mv. | E129: 0
B130: 18.12.00 | C130: Anden trykning | D130: Trykkerier mv. | E130: 0
B131: 18.13.00 | C131: Prepress- og premedia-arbejde | D131: Trykkerier mv. | E131: 0
B132: 18.14.00 | C132: Bogbinding og lignende serviceydelser | D132: Trykkerier mv. | E132: 0
B133: 18.20.00 | C133: Reproduktion af indspillede medier | D133: Trykkerier mv. | E133: 0
B134: 19.10.00 | C134: Fremstilling af koks mv. | D134: Olieraffinaderier mv. | E134: 0
B135: 19.20.00 | C135: Fremstilling af raffinerede mineralolieprodukter | D135: Olieraffinaderier mv. | E135: 0
B136: 20.11.00 | C136: Fremstilling af industrigasser | D136: Fremst. af basiskemikalier | E136: 0
B137: 20.12.00 | C137: Fremstilling af farvestoffer og pigmenter | D137: Fremst. af basiskemikalier | E137: 0
B138: 20.13.00 | C138: Fremstilling af andre uorganiske basiskemikalier | D138: Fremst. af basiskemikalier | E138: 0
B139: 20.14.00 | C139: Fremstilling af andre organiske basiskemikalier | D139: Fremst. af basiskemikalier | E139: 0
B140: 20.15.00 | C140: Fremstilling af gødningsstoffer og nitrogenprodukter | D140: Fremst. af basiskemikalier | E140: 0
B141: 20.16.00 | C141: Fremstilling af plast i ubearbejdet form | D141: Fremst. af basiskemikalier | E141: 0
B142: 20.17.00 | C142: Fremstilling af syntetisk gummi i ubearbejdet form | D142: Fremst. af basiskemikalier | E142: 0
B143: 20.20.00 | C143: Fremstilling af pesticider og andre agrokemiske produkter | D143: Fremst. af basiskemikalier | E143: 0
B144: 20.30.00 | C144: Fremstilling af maling, lak og lignende overfladebehandlingsmidler, trykfarver samt tætningsmaterialer | D144: Fremst. af maling og sæbe mv. | E144: 0
B145: 20.41.00 | C145: Fremstilling af sæbe, rengørings- og rensemidler samt poleremidler | D145: Fremst. af maling og sæbe mv. | E145: 0
B146: 20.42.00 | C146: Fremstilling af parfume, hårshampoo, tandpasta mv. | D146: Fremst. af maling og sæbe mv. | E146: 0
B147: 20.59.00 | C147: Fremstilling af sprængstoffer | D147: Fremst. af maling og sæbe mv. | E147: 0
B148: 20.59.00 | C148: Fremstilling af lim | D148: Fremst. af maling og sæbe mv. | E148: 0
B149: 20.59.00 | C149: Fremstilling af æteriske olier | D149: Fremst. af maling og sæbe mv. | E149: 0
B150: 20.59.00 | C150: Fremstilling af andre kemiske produkter i.a.n. | D150: Fremst. af maling og sæbe mv. | E150: 0
B151: 20.60.00 | C151: Fremstilling af kemofibre | D151: Fremst. af maling og sæbe mv. | E151: 0
B152: 21.10.00 | C152: Fremstilling af farmaceutiske råvarer | D152: Medicinalindustri | E152: 0
B153: 21.20.00 | C153: Fremstilling af farmaceutiske præparater | D153: Medicinalindustri | E153: 0
B154: 22.11.00 | C154: Fremstilling af gummidæk og gummislanger; vulkanisering af dæk | D154: Plast- og gummiindustri | E154: 0
B155: 22.12.00 | C155: Fremstilling af andre gummiprodukter | D155: Plast- og gummiindustri | E155: 0
B156: 22.21.00 | C156: Fremstilling af plader, ark, rør og slanger samt profiler af plast | D156: Plast- og gummiindustri | E156: 0
B157: 22.22.00 | C157: Fremstilling af plastemballage | D157: Plast- og gummiindustri | E157: 0
B158: 22.24.00 | C158: Fremstilling af bygningsartikler af plast | D158: Plast- og gummiindustri | E158: 0
B159: 22.26.00 | C159: Fremstilling af andre plastprodukter | D159: Plast- og gummiindustri | E159: 0
B160: 23.11.00 | C160: Fremstilling af planglas | D160: Glasindustri og keramisk industri | E160: 0
B161: 23.12.00 | C161: Formning og forarbejdning af planglas | D161: Glasindustri og keramisk industri | E161: 0
B162: 23.13.00 | C162: Fremstilling af flasker, drikkeglas mv. | D162: Glasindustri og keramisk industri | E162: 0
B163: 23.14.00 | C163: Fremstilling af glasfiber | D163: Glasindustri og keramisk industri | E163: 0
B164: 23.15.00 | C164: Fremstilling og bearbejdning af andet glas (herunder teknisk glas) | D164: Glasindustri og keramisk industri | E164: 0
B165: 23.20.00 | C165: Fremstilling af ildfaste produkter | D165: Glasindustri og keramisk industri | E165: 0
B166: 23.31.00 | C166: Fremstilling af keramiske teglsten og gulvfliser | D166: Betonindustri og teglværker | E166: 0
B167: 23.32.00 | C167: Fremstilling af mursten, teglsten og byggematerialer af brændt ler | D167: Betonindustri og teglværker | E167: 0
B168: 23.41.00 | C168: Fremstilling af keramiske husholdningsartikler og pyntegenstande | D168: Glasindustri og keramisk industri | E168: 0
B169: 23.42.00 | C169: Fremstilling af keramiske sanitetsartikler | D169: Glasindustri og keramisk industri | E169: 0
B170: 23.43.00 | C170: Fremstilling af keramiske isolatorer og isoleringsdele | D170: Glasindustri og keramisk industri | E170: 0
B171: 23.44.00 | C171: Fremstilling af andre keramiske produkter til teknisk brug | D171: Glasindustri og keramisk industri | E171: 0
B172: 23.45.00 | C172: Fremstilling af andre keramiske produkter | D172: Glasindustri og keramisk industri | E172: 0
B173: 23.51.00 | C173: Fremstilling af cement | D173: Betonindustri og teglværker | E173: 0
B174: 23.52.00 | C174: Fremstilling af kalk og gips | D174: Betonindustri og teglværker | E174: 0
B175: 23.61.00 | C175: Fremstilling af byggematerialer af beton | D175: Betonindustri og teglværker | E175: 0
B176: 23.62.00 | C176: Fremstilling af byggematerialer af gips | D176: Betonindustri og teglværker | E176: 0
B177: 23.63.00 | C177: Fremstilling af færdigblandet beton | D177: Betonindustri og teglværker | E177: 0
B178: 23.64.00 | C178: Fremstilling af mørtel | D178: Betonindustri og teglværker | E178: 0
B179: 23.65.00 | C179: Fremstilling af fibercement | D179: Betonindustri og teglværker | E179: 0
B180: 23.66.00 | C180: Fremstilling af andre beton-, gips- og cementprodukter | D180: Betonindustri og teglværker | E180: 0
B181: 23.70.00 | C181: Tilhugning, tilskæring og færdigbearbejdning af sten | D181: Betonindustri og teglværker | E181: 0
B182: 23.91.00 | C182: Fremstilling af slibemidler | D182: Betonindustri og teglværker | E182: 0
B183: 23.99.10 | C183: Fremstilling af asfalt og tagpap | D183: Betonindustri og teglværker | E183: 0
B184: 23.99.90 | C184: Fremstilling af andre ikke-metalholdige mineralske produkter i.a.n. | D184: Betonindustri og teglværker | E184: 0
B185: 24.10.00 | C185: Fremstilling af råjern og råstål samt jernlegeringer | D185: Fremst. af metal | E185: 0
B186: 24.20.00 | C186: Fremstilling af rør og hule profiler og tilhørende fittings af stål | D186: Fremst. af metal | E186: 0
B187: 24.31.00 | C187: Fremstilling af stænger ved koldtrækning | D187: Fremst. af metal | E187: 0
B188: 24.32.00 | C188: Fremstilling af stålbånd ved koldvalsning | D188: Fremst. af metal | E188: 0
B189: 24.33.00 | C189: Koldbehandling | D189: Fremst. af metal | E189: 0
B190: 24.34.00 | C190: Fremstilling af tråd ved koldtrækning | D190: Fremst. af metal | E190: 0
B191: 24.41.00 | C191: Fremstilling af ædelmetaller | D191: Fremst. af metal | E191: 0
B192: 24.42.00 | C192: Fremstilling af aluminium | D192: Fremst. af metal | E192: 0
B193: 24.43.00 | C193: Fremstilling af bly, zink og tin | D193: Fremst. af metal | E193: 0
B194: 24.44.00 | C194: Fremstilling af kobber | D194: Fremst. af metal | E194: 0
B195: 24.45.00 | C195: Anden fremstilling af ikke-jernholdige metaller | D195: Fremst. af metal | E195: 0
B196: 24.46.00 | C196: Oparbejdning af nukleart brændsel | D196: Fremst. af metal | E196: 0
B197: 24.51.00 | C197: Støbning af jernprodukter | D197: Fremst. af metal | E197: 0
B198: 24.52.00 | C198: Støbning af stålprodukter | D198: Fremst. af metal | E198: 0
B199: 24.53.00 | C199: Støbning af letmetalprodukter | D199: Fremst. af metal | E199: 0
B200: 24.54.00 | C200: Støbning af andre ikke-jernholdige metalprodukter | D200: Fremst. af metal | E200: 0
... 544 more rows

Sheet DB Koder Danmark old db07 (hidden)
A1: NB | B1: DB25 | C1: Titler | D1: 127 std | E1: Præmiereduktion | F1: Do not include | G1: Ny verdi | I1: DB07 | J1: DB25 | K1: DB07
B2: 2000-11-01 | C2: Dyrkning af korn (undtagen ris), bælgfrugter og olieholdige frø | D2: Landbrug og gartneri | E2: 0 | G2: =IFERROR(INDEX($I$2:$K$737,MATCH(B2,$K$2:$K$737,0),2),B2) -> 01.11.00 | I2: 01.11.00 | J2: 01.11.00 | K2: 2000-11-01
B3: 2000-12-01 | C3: Dyrkning af ris | D3: Landbrug og gartneri | E3: 0 | G3: =IFERROR(INDEX($I$2:$K$737,MATCH(B3,$K$2:$K$737,0),2),B3) -> 01.12.00 | I3: 01.12.00 | J3: 01.12.00 | K3: 2000-12-01
B4: 01.13.00 | C4: Dyrkning af grøntsager og meloner, rødder og rodknolde | D4: Landbrug og gartneri | E4: 0 | G4: 01.13.00 | I4: 01.13.00 | J4: 01.13.00 | K4: 01.13.00
B5: 01.14.00 | C5: Dyrkning af sukkerrør | D5: Landbrug og gartneri | E5: 0 | G5: 01.14.00 | I5: 01.14.00 | J5: 01.14.00 | K5: 01.14.00
B6: 01.15.00 | C6: Dyrkning af tobak | D6: Landbrug og gartneri | E6: 0 | G6: 01.15.00 | I6: 01.15.00 | J6: 01.15.00 | K6: 01.15.00
B7: 01.16.00 | C7: Dyrkning af tekstilplanter | D7: 00.16.01 | E7: 0 | G7: 01.16.00 | I7: 01.16.00 | J7: 01.16.00 | K7: 01.16.00
B8: 01.19.00 | C8: Dyrkning af andre etårige afgrøder | D8: Landbrug og gartneri | E8: 0 | G8: 01.19.00 | I8: 01.19.00 | J8: 01.19.00 | K8: 01.19.00
B9: 01.21.00 | C9: Dyrkning af druer | D9: Landbrug og gartneri | E9: 0 | G9: 01.21.00 | I9: 01.21.00 | J9: 01.21.00 | K9: 01.21.00
B10: 01.22.00 | C10: Dyrkning af tropiske og subtropiske frugter | D10: Landbrug og gartneri | E10: 0 | G10: 01.22.00 | I10: 01.22.00 | J10: 01.22.00 | K10: 01.22.00
B11: 01.23.00 | C11: Dyrkning af citrusfrugter | D11: Landbrug og gartneri | E11: 0 | G11: 01.23.00 | I11: 01.23.00 | J11: 01.23.00 | K11: 01.23.00
B12: 01.24.00 | C12: Dyrkning af kernefrugter og stenfrugter | D12: Landbrug og gartneri | E12: 0 | G12: 01.24.00 | I12: 01.24.00 | J12: 01.24.00 | K12: 01.24.00
B13: 01.25.00 | C13: Dyrkning af andre træfrugter, bær og nødder | D13: Landbrug og gartneri | E13: 0 | G13: 01.25.00 | I13: 01.25.00 | J13: 01.25.00 | K13: 01.25.00
B14: 01.26.00 | C14: Dyrkning af olieholdige frugter | D14: Landbrug og gartneri | E14: 0 | G14: 01.26.00 | I14: 01.26.00 | J14: 01.26.00 | K14: 01.26.00
B15: 01.27.00 | C15: Dyrkning af planter til fremstilling af drikkevarer | D15: Landbrug og gartneri | E15: 0 | G15: 01.27.00 | I15: 01.27.00 | J15: 01.27.00 | K15: 01.27.00
B16: 01.28.00 | C16: Dyrkning af krydderiplanter, aromaplanter og lægeplanter | D16: Landbrug og gartneri | E16: 0 | G16: 01.28.00 | I16: 01.28.00 | J16: 01.28.00 | K16: 01.28.00
B17: 01.29.00 | C17: Dyrkning af andre flerårige afgrøder | D17: Landbrug og gartneri | E17: 0 | G17: 01.29.00 | I17: 01.29.00 | J17: 01.29.00 | K17: 01.29.00
B18: 01.30.00 | C18: Planteformering | D18: Landbrug og gartneri | E18: 0 | G18: 01.30.00 | I18: 01.30.00 | J18: 01.30.00 | K18: 01.30.00
B19: 01.41.00 | C19: Avl af malkekvæg | D19: Landbrug og gartneri | E19: 0 | G19: 01.41.00 | I19: 01.41.00 | J19: 01.41.00 | K19: 01.41.00
B20: 01.42.00 | C20: Avl af andet kvæg og bøfler | D20: Landbrug og gartneri | E20: 0 | G20: 01.42.00 | I20: 01.42.00 | J20: 01.42.00 | K20: 01.42.00
B21: 01.43.00 | C21: Avl af heste og dyr af hestefamilien | D21: Landbrug og gartneri | E21: 0 | G21: 01.43.00 | I21: 01.43.00 | J21: 01.43.00 | K21: 01.43.00
B22: 01.44.00 | C22: Avl af kameler og dyr af kamelfamilien | D22: Landbrug og gartneri | E22: 0 | G22: 01.44.00 | I22: 01.44.00 | J22: 01.44.00 | K22: 01.44.00
B23: 01.45.00 | C23: Avl af får og geder | D23: Landbrug og gartneri | E23: 0 | G23: 01.45.00 | I23: 01.45.00 | J23: 01.45.00 | K23: 01.45.00
B24: 01.46.10 | C24: Avl af smågrise | D24: Landbrug og gartneri | E24: 0 | G24: 01.46.10 | I24: 01.46.10 | J24: 01.46.10 | K24: 01.46.10
B25: 01.46.20 | C25: Produktion af slagtesvin | D25: Landbrug og gartneri | E25: 0 | G25: 01.46.20 | I25: 01.46.20 | J25: 01.46.20 | K25: 01.46.20
B26: 01.47.00 | C26: Fjerkræavl | D26: Landbrug og gartneri | E26: 0 | G26: 01.47.00 | I26: 01.47.00 | J26: 01.47.00 | K26: 01.47.00
B27: 01.49.10 | C27: Kenneler | D27: Landbrug og gartneri | E27: 0 | G27: 01.48.00 | I27: 01.49.10 | J27: 01.48.00 | K27: 01.49.10
B28: 01.49.20 | C28: Avl af pelsdyr mv. | D28: Landbrug og gartneri | E28: 0 | G28: 01.48.00 | I28: 01.49.20 | J28: 01.48.00 | K28: 01.49.20
B29: 01.50.00 | C29: Blandet drift | D29: Landbrug og gartneri | E29: 0 | G29: 01.50.00 | I29: 01.50.00 | J29: 01.50.00 | K29: 01.50.00
B30: 01.61.00 | C30: Serviceydelser i forbindelse med planteavl | D30: Landbrug og gartneri | E30: 0 | G30: 01.61.00 | I30: 01.61.00 | J30: 01.61.00 | K30: 01.61.00
B31: 01.62.00 | C31: Serviceydelser i forbindelse med husdyravl | D31: Landbrug og gartneri | E31: 0 | G31: 01.62.00 | I31: 01.62.00 | J31: 01.62.00 | K31: 01.62.00
B32: 01.63.00 | C32: Forarbejdning af afgrøder efter høst | D32: Landbrug og gartneri | E32: 0 | G32: 01.63.00 | I32: 01.63.00 | J32: 01.63.00 | K32: 01.63.00
B33: 01.64.00 | C33: Forarbejdning af frø/sædekorn til udsæd | D33: Landbrug og gartneri | E33: 0 | G33: 01.63.00 | I33: 01.64.00 | J33: 01.63.00 | K33: 01.64.00
B34: 01.70.00 | C34: Jagt, fældefangst og serviceydelser i forbindelse hermed | D34: Landbrug og gartneri | E34: 0 | G34: 01.70.00 | I34: 01.70.00 | J34: 01.70.00 | K34: 01.70.00
B35: 2000-10-02 | C35: Dyrkning af træer og andre skovbrugsaktiviteter | D35: Skovbrug | E35: 0 | G35: 02.10.00 | I35: 02.10.00 | J35: 02.10.00 | K35: 2000-10-02
B36: 02.20.00 | C36: Skovning | D36: Skovbrug | E36: 0 | G36: 02.20.00 | I36: 02.20.00 | J36: 02.20.00 | K36: 02.20.00
B37: 02.30.00 | C37: Indsamling af vildtvoksende forstmateriale undtagen træer | D37: Skovbrug | E37: 0 | G37: 02.30.00 | I37: 02.30.00 | J37: 02.30.00 | K37: 02.30.00
B38: 02.40.00 | C38: Serviceydelser til skovbrug | D38: Skovbrug | E38: 0 | G38: 02.40.00 | I38: 02.40.00 | J38: 02.40.00 | K38: 02.40.00
B39: 2000-11-03 | C39: Havfiskeri | D39: Fiskeri | E39: 0 | G39: 03.11.00 | I39: 03.11.00 | J39: 03.11.00 | K39: 2000-11-03
B40: 2000-12-03 | C40: Ferskvandsfiskeri | D40: Fiskeri | E40: 0 | G40: 03.12.00 | I40: 03.12.00 | J40: 03.12.00 | K40: 2000-12-03
B41: 03.21.00 | C41: Havbrug | D41: Fiskeri | E41: 0 | G41: 03.21.00 | I41: 03.21.00 | J41: 03.21.00 | K41: 03.21.00
B42: 03.22.00 | C42: Ferskvandsbrug | D42: Fiskeri | E42: 0 | G42: 03.22.00 | I42: 03.22.00 | J42: 03.22.00 | K42: 03.22.00
B43: 2000-10-05 | C43: Indvinding af stenkul | D43: Indvinding af grus og sten | E43: 0 | G43: 05.10.00 | I43: 05.10.00 | J43: 05.10.00 | K43: 2000-10-05
B44: 05.20.00 | C44: Indvinding af brunkul | D44: Indvinding af grus og sten | E44: 0 | G44: 05.20.00 | I44: 05.20.00 | J44: 05.20.00 | K44: 05.20.00
B45: 2000-10-06 | C45: Indvinding af råolie | D45: Indvinding af olie og gas | E45: 0 | G45: 06.10.00 | I45: 06.10.00 | J45: 06.10.00 | K45: 2000-10-06
B46: 06.20.00 | C46: Indvinding af naturgas | D46: Indvinding af olie og gas | E46: 0 | G46: 06.20.00 | I46: 06.20.00 | J46: 06.20.00 | K46: 06.20.00
B47: 2000-10-07 | C47: Brydning af jernmalm | D47: Indvinding af grus og sten | E47: 0 | G47: 07.10.00 | I47: 07.10.00 | J47: 07.10.00 | K47: 2000-10-07
B48: 07.21.00 | C48: Brydning af uran- og thoriummalme | D48: Indvinding af grus og sten | E48: 0 | G48: 07.21.00 | I48: 07.21.00 | J48: 07.21.00 | K48: 07.21.00
B49: 07.29.00 | C49: Brydning af andre ikke-jernholdige metalmalme | D49: Indvinding af grus og sten | E49: 0 | G49: 07.29.00 | I49: 07.29.00 | J49: 07.29.00 | K49: 07.29.00
B50: 2000-11-08 | C50: Brydning af pynte- og bygningssten, kalksten, gips, kridt og skifer | D50: Indvinding af grus og sten | E50: 0 | G50: 08.11.00 | I50: 08.11.00 | J50: 08.11.00 | K50: 2000-11-08
B51: 2000-12-08 | C51: Grus- og sandgravning; indvinding af ler og kaolin | D51: Indvinding af grus og sten | E51: 0 | G51: 08.12.00 | I51: 08.12.00 | J51: 08.12.00 | K51: 2000-12-08
B52: 08.91.00 | C52: Indvinding af mineraler til fremstilling af kemiske produkter og gødningsstoffer | D52: Indvinding af grus og sten | E52: 0 | G52: 08.91.00 | I52: 08.91.00 | J52: 08.91.00 | K52: 08.91.00
B53: 08.92.00 | C53: Indvinding og agglomerering af tørv | D53: Indvinding af grus og sten | E53: 0 | G53: 08.92.00 | I53: 08.92.00 | J53: 08.92.00 | K53: 08.92.00
B54: 08.93.00 | C54: Saltindvinding | D54: Indvinding af grus og sten | E54: 0 | G54: 08.93.00 | I54: 08.93.00 | J54: 08.93.00 | K54: 08.93.00
B55: 08.99.00 | C55: Anden råstofindvinding i.a.n. | D55: Indvinding af grus og sten | E55: 0 | G55: 08.99.00 | I55: 08.99.00 | J55: 08.99.00 | K55: 08.99.00
B56: 2000-10-09 | C56: Serviceydelser i forbindelse med indvinding af råolie og naturgas | D56: Service til råstofindvinding | E56: 0 | G56: 09.10.00 | I56: 09.10.00 | J56: 09.10.00 | K56: 2000-10-09
B57: 09.90.00 | C57: Serviceydelser i forbindelse med anden råstofindvinding | D57: Service til råstofindvinding | E57: 0 | G57: 09.90.00 | I57: 09.90.00 | J57: 09.90.00 | K57: 09.90.00
B58: 2010-11-10 | C58: Forarbejdning af svinekød | D58: Slagterier | E58: 0 | G58: 10.11.10 | I58: 10.11.10 | J58: 10.11.10 | K58: 2010-11-10
B59: 1990-11-10 | C59: Forarbejdning af andet kød | D59: Slagterier | E59: 0 | G59: 10.11.90 | I59: 10.11.90 | J59: 10.11.90 | K59: 1990-11-10
B60: 2000-12-10 | C60: Forarbejdning og konservering af fjerkrækød | D60: Slagterier | E60: 0 | G60: 10.12.00 | I60: 10.12.00 | J60: 10.12.00 | K60: 2000-12-10
B61: 10.13.00 | C61: Produktion af kød- og fjerkrækødprodukter | D61: Slagterier | E61: 0 | G61: 10.13.00 | I61: 10.13.00 | J61: 10.13.00 | K61: 10.13.00
B62: 10.20.10 | C62: Fremstilling af fiskemel | D62: Fiskeindustri | E62: 0 | G62: 10.20.10 | I62: 10.20.10 | J62: 10.20.10 | K62: 10.20.10
B63: 10.20.20 | C63: Forarbejdning og konservering af fisk, krebsdyr og bløddyr, undtagen fiskemel | D63: Fiskeindustri | E63: 0 | G63: 10.20.20 | I63: 10.20.20 | J63: 10.20.20 | K63: 10.20.20
B64: 10.31.00 | C64: Forarbejdning og konservering af kartofler | D64: Anden fødevareindustri | E64: 0 | G64: 10.31.00 | I64: 10.31.00 | J64: 10.31.00 | K64: 10.31.00
B65: 10.32.00 | C65: Fremstilling af frugt- og grøntsagssaft | D65: Anden fødevareindustri | E65: 0 | G65: 10.32.00 | I65: 10.32.00 | J65: 10.32.00 | K65: 10.32.00
B66: 10.39.00 | C66: Anden forarbejdning og konservering af frugt og grøntsager | D66: Anden fødevareindustri | E66: 0 | G66: 10.39.00 | I66: 10.39.00 | J66: 10.39.00 | K66: 10.39.00
B67: 10.41.00 | C67: Fremstilling af olier og fedtstoffer | D67: Anden fødevareindustri | E67: 0 | G67: =IFERROR(INDEX($I$2:$K$737,MATCH(B67,$K$2:$K$737,0),2),B67) -> 10.41.00 | I67: 10.41.00 | J67: 10.41.00 | K67: 10.41.00
B68: 10.42.00 | C68: Fremstilling af margarine o.l. spiselige fedtstoffer | D68: Anden fødevareindustri | E68: 0 | G68: 10.42.00 | I68: 10.42.00 | J68: 10.42.00 | K68: 10.42.00
B69: 10.51.00 | C69: Mejerier samt ostefremstilling | D69: Mejerier | E69: 0 | G69: 10.51.00 | I69: 10.51.00 | J69: 10.51.00 | K69: 10.51.00
B70: 10.52.00 | C70: Fremstilling af konsumis | D70: Mejerier | E70: 0 | G70: 10.52.00 | I70: 10.52.00 | J70: 10.52.00 | K70: 10.52.00
B71: 10.61.00 | C71: Fremstilling af mølleriprodukter | D71: Bagerier, brødfabrikker mv. | E71: 0 | G71: 10.61.00 | I71: 10.61.00 | J71: 10.61.00 | K71: 10.61.00
B72: 10.62.00 | C72: Fremstilling af stivelse og stivelsesprodukter | D72: Bagerier, brødfabrikker mv. | E72: 0 | G72: 10.62.00 | I72: 10.62.00 | J72: 10.62.00 | K72: 10.62.00
B73: 10.71.10 | C73: Industriel fremstilling af brød; kager mv. | D73: Bagerier, brødfabrikker mv. | E73: 0 | G73: 10.71.10 | I73: 10.71.10 | J73: 10.71.10 | K73: 10.71.10
B74: 10.71.20 | C74: Fremstilling af friske bageriprodukter | D74: Bagerier, brødfabrikker mv. | E74: 0 | G74: 10.71.20 | I74: 10.71.20 | J74: 10.71.20 | K74: 10.71.20
B75: 10.72.00 | C75: Fremstilling af tvebakker og kiks; fremstilling af konserverede kager, tærter mv. | D75: Bagerier, brødfabrikker mv. | E75: 0 | G75: 10.72.00 | I75: 10.72.00 | J75: 10.72.00 | K75: 10.72.00
B76: 10.73.00 | C76: Fremstilling af makaroni, nudler, couscous og lignende dejvarer | D76: Bagerier, brødfabrikker mv. | E76: 0 | G76: 10.73.00 | I76: 10.73.00 | J76: 10.73.00 | K76: 10.73.00
B77: 10.81.00 | C77: Fremstilling af sukker | D77: Anden fødevareindustri | E77: 0 | G77: 10.81.00 | I77: 10.81.00 | J77: 10.81.00 | K77: 10.81.00
B78: 10.82.00 | C78: Fremstilling af kakao, chokolade og sukkervarer | D78: Anden fødevareindustri | E78: 0 | G78: 10.82.00 | I78: 10.82.00 | J78: 10.82.00 | K78: 10.82.00
B79: 10.83.00 | C79: Forarbejdning af te og kaffe | D79: Anden fødevareindustri | E79: 0 | G79: 10.83.00 | I79: 10.83.00 | J79: 10.83.00 | K79: 10.83.00
B80: 10.84.00 | C80: Fremstilling af smagspræparater og krydderier | D80: Anden fødevareindustri | E80: 0 | G80: 10.84.00 | I80: 10.84.00 | J80: 10.84.00 | K80: 10.84.00
B81: 10.85.00 | C81: Fremstilling af færdigretter | D81: Anden fødevareindustri | E81: 0 | G81: 10.85.00 | I81: 10.85.00 | J81: 10.85.00 | K81: 10.85.00
B82: 10.86.00 | C82: Fremstilling af homogeniserede produkter og diætmad | D82: Anden fødevareindustri | E82: 0 | G82: 10.86.00 | I82: 10.86.00 | J82: 10.86.00 | K82: 10.86.00
B83: 10.89.00 | C83: Fremstilling af andre fødevarer i.a.n. | D83: Anden fødevareindustri | E83: 0 | G83: 10.89.00 | I83: 10.89.00 | J83: 10.89.00 | K83: 10.89.00
B84: 10.91.00 | C84: Fremstilling af færdige foderblandinger til landbrugsdyr | D84: Anden fødevareindustri | E84: 0 | G84: 10.91.00 | I84: 10.91.00 | J84: 10.91.00 | K84: 10.91.00
B85: 10.92.00 | C85: Fremstilling af færdige foderblandinger til kæledyr | D85: Anden fødevareindustri | E85: 0 | G85: 10.92.00 | I85: 10.92.00 | J85: 10.92.00 | K85: 10.92.00
B86: 2000-01-11 | C86: Destillation, rektifikation og blanding af alkohol | D86: Drikkevareindustri | E86: 0 | G86: 11.01.00 | I86: 11.01.00 | J86: 11.01.00 | K86: 2000-01-11
B87: 2000-02-11 | C87: Fremstilling af vin af druer | D87: Drikkevareindustri | E87: 0 | G87: 11.02.00 | I87: 11.02.00 | J87: 11.02.00 | K87: 2000-02-11
B88: 2000-03-11 | C88: Fremstilling af cider og anden frugtvin | D88: Drikkevareindustri | E88: 0 | G88: 11.03.00 | I88: 11.03.00 | J88: 11.03.00 | K88: 2000-03-11
B89: 2000-04-11 | C89: Fremstilling af andre ikke-destillerede gærede drikkevarer | D89: Drikkevareindustri | E89: 0 | G89: 11.04.00 | I89: 11.04.00 | J89: 11.04.00 | K89: 2000-04-11
B90: 2000-05-11 | C90: Fremstilling af øl | D90: Drikkevareindustri | E90: 0 | G90: 11.05.00 | I90: 11.05.00 | J90: 11.05.00 | K90: 2000-05-11
B91: 2000-06-11 | C91: Fremstilling af malt | D91: Drikkevareindustri | E91: 0 | G91: 11.06.00 | I91: 11.06.00 | J91: 11.06.00 | K91: 2000-06-11
B92: 2000-07-11 | C92: Fremstilling af læskedrikke; fremstilling af mineralvand og andet vand på flaske | D92: Drikkevareindustri | E92: 0 | G92: 11.07.00 | I92: 11.07.00 | J92: 11.07.00 | K92: 2000-07-11
B93: 12.00.00 | C93: Fremstilling af tobaksprodukter | D93: Tobaksindustri | E93: 0 | G93: 12.00.00 | I93: 12.00.00 | J93: 12.00.00 | K93: 12.00.00
B94: 2000-10-13 | C94: Forbehandling og spinding af tekstilfibre | D94: Tekstilindustri | E94: 0 | G94: 13.10.00 | I94: 13.10.00 | J94: 13.10.00 | K94: 2000-10-13
B95: 13.20.00 | C95: Vævning af tekstiler | D95: Tekstilindustri | E95: 0 | G95: 13.20.00 | I95: 13.20.00 | J95: 13.20.00 | K95: 13.20.00
B96: 13.30.00 | C96: Efterbehandling af tekstiler | D96: Tekstilindustri | E96: 0 | G96: 13.30.00 | I96: 13.30.00 | J96: 13.30.00 | K96: 13.30.00
B97: 13.91.00 | C97: Fremstilling af trikotagestoffer | D97: Tekstilindustri | E97: 0 | G97: 13.91.00 | I97: 13.91.00 | J97: 13.91.00 | K97: 13.91.00
B98: 13.92.10 | C98: Fremstilling af boligtekstiler | D98: Tekstilindustri | E98: 0 | G98: 13.92.00 | I98: 13.92.10 | J98: 13.92.00 | K98: 13.92.10
B99: 13.92.20 | C99: Fremstilling af færdige tekstilvarer undtagen boligtekstiler og beklædningsartikler | D99: Tekstilindustri | E99: 0 | G99: 13.96.00 | I99: 13.92.20 | J99: 13.96.00 | K99: 13.92.20
B100: 13.93.00 | C100: Fremstilling af tæpper | D100: Tekstilindustri | E100: 0 | G100: 13.93.00 | I100: 13.93.00 | J100: 13.93.00 | K100: 13.93.00
B101: 13.94.00 | C101: Fremstilling af reb, tovværk, sejlgarn og netstoffer | D101: Tekstilindustri | E101: 0 | G101: 13.94.00 | I101: 13.94.00 | J101: 13.94.00 | K101: 13.94.00
B102: 13.95.00 | C102: Fremstilling af fiberdug og varer af fiberdug undtagen beklædningsartikler | D102: Tekstilindustri | E102: 0 | G102: 13.95.00 | I102: 13.95.00 | J102: 13.95.00 | K102: 13.95.00
B103: 13.96.00 | C103: Fremstilling af andre tekniske og industrielle tekstiler | D103: Tekstilindustri | E103: 0 | G103: 13.96.00 | I103: 13.96.00 | J103: 13.96.00 | K103: 13.96.00
B104: 13.99.00 | C104: Fremstilling af andre tekstiler i.a.n. | D104: Tekstilindustri | E104: 0 | G104: 13.99.00 | I104: 13.99.00 | J104: 13.99.00 | K104: 13.99.00
B105: 2000-11-14 | C105: Fremstilling af beklædningsartikler af læder | D105: Beklædningsindustri | E105: 0 | G105: 14.24.00 | I105: 14.11.00 | J105: 14.24.00 | K105: 2000-11-14
B106: 2000-12-14 | C106: Fremstilling af arbejdsbeklædning | D106: Beklædningsindustri | E106: 0 | G106: 14.23.00 | I106: 14.12.00 | J106: 14.23.00 | K106: 2000-12-14
B107: 14.13.00 | C107: Fremstilling af anden yderbeklædning | D107: Beklædningsindustri | E107: 0 | G107: 14.21.00 | I107: 14.13.00 | J107: 14.21.00 | K107: 14.13.00
B108: 14.14.00 | C108: Fremstilling af underbeklædning | D108: Beklædningsindustri | E108: 0 | G108: 14.22.00 | I108: 14.14.00 | J108: 14.22.00 | K108: 14.14.00
B109: 14.19.00 | C109: Fremstilling af andre beklædningsartikler samt tilbehør | D109: Beklædningsindustri | E109: 0 | G109: 14.29.00 | I109: 14.19.00 | J109: 14.29.00 | K109: 14.19.00
B110: 14.20.00 | C110: Fremstilling af varer af pelsskind | D110: Beklædningsindustri | E110: 0 | G110: 14.24.00 | I110: 14.20.00 | J110: 14.24.00 | K110: 14.20.00
B111: 14.31.00 | C111: Fremstilling af strikkede og hæklede strømpevarer | D111: Beklædningsindustri | E111: 0 | G111: 14.10.00 | I111: 14.31.00 | J111: 14.10.00 | K111: 14.31.00
B112: 14.39.00 | C112: Fremstilling af andre strikkede og hæklede beklædningsartikler | D112: Beklædningsindustri | E112: 0 | G112: 14.10.00 | I112: 14.39.00 | J112: 14.10.00 | K112: 14.39.00
B113: 2000-11-15 | C113: Garvning og beredning af læder; beredning og farvning af pelsskind | D113: Læder- og fodtøjsindustri | E113: 0 | G113: 15.11.00 | I113: 15.11.00 | J113: 15.11.00 | K113: 2000-11-15
B114: 2000-12-15 | C114: Fremstilling af tasker, kufferter, sadelmagervarer mv. | D114: Læder- og fodtøjsindustri | E114: 0 | G114: 15.12.00 | I114: 15.12.00 | J114: 15.12.00 | K114: 2000-12-15
B115: 15.20.00 | C115: Fremstilling af fodtøj | D115: Læder- og fodtøjsindustri | E115: 0 | G115: 15.20.00 | I115: 15.20.00 | J115: 15.20.00 | K115: 15.20.00
B116: 2000-10-16 | C116: Udsavning og høvling af træ | D116: Træindustri | E116: 0 | G116: 16.11.00 | I116: 16.10.00 | J116: 16.11.00 | K116: 2000-10-16
B117: 16.21.00 | C117: Fremstilling af finerplader og træbaserede plader | D117: Træindustri | E117: 0 | G117: 16.21.00 | I117: 16.21.00 | J117: 16.21.00 | K117: 16.21.00
B118: 16.22.00 | C118: Fremstilling af sammensatte parketstave | D118: Træindustri | E118: 0 | G118: 16.22.00 | I118: 16.22.00 | J118: 16.22.00 | K118: 16.22.00
B119: 16.23.00 | C119: Fremstilling af bygningstømmer og snedkeriartikler i øvrigt | D119: Træindustri | E119: 0 | G119: 16.23.00 | I119: 16.23.00 | J119: 16.23.00 | K119: 16.23.00
B120: 16.24.00 | C120: Fremstilling af træemballage | D120: Træindustri | E120: 0 | G120: 16.24.00 | I120: 16.24.00 | J120: 16.24.00 | K120: 16.24.00
B121: 16.29.00 | C121: Fremstilling af andre træprodukter; fremstilling af varer af kork, strå og flettematerialer | D121: Træindustri | E121: 0 | G121: 16.28.00 | I121: 16.29.00 | J121: 16.28.00 | K121: 16.29.00
B122: 2000-11-17 | C122: Fremstilling af papirmasse | D122: Papirindustri | E122: 0 | G122: 17.11.00 | I122: 17.11.00 | J122: 17.11.00 | K122: 2000-11-17
B123: 2000-12-17 | C123: Fremstilling af papir og pap | D123: Papirindustri | E123: 0 | G123: 17.12.00 | I123: 17.12.00 | J123: 17.12.00 | K123: 2000-12-17
B124: 17.21.00 | C124: Fremstilling af bølgepap og pap og emballage af papir og pap | D124: Papirindustri | E124: 0 | G124: 17.21.00 | I124: 17.21.00 | J124: 17.21.00 | K124: 17.21.00
B125: 17.22.00 | C125: Fremstilling af husholdningsartikler og hygiejneartikler samt toiletartikler af papir og pap | D125: Papirindustri | E125: 0 | G125: 17.22.00 | I125: 17.22.00 | J125: 17.22.00 | K125: 17.22.00
B126: 17.23.00 | C126: Fremstilling af kontorartikler af papir | D126: Papirindustri | E126: 0 | G126: 17.23.00 | I126: 17.23.00 | J126: 17.23.00 | K126: 17.23.00
B127: 17.24.00 | C127: Fremstilling af tapet | D127: Papirindustri | E127: 0 | G127: 17.24.00 | I127: 17.24.00 | J127: 17.24.00 | K127: 17.24.00
B128: 17.29.00 | C128: Fremstilling af andre papir- og papvarer | D128: Papirindustri | E128: 0 | G128: 17.25.00 | I128: 17.29.00 | J128: 17.25.00 | K128: 17.29.00
B129: 2000-11-18 | C129: Trykning af dagblade | D129: Trykkerier mv. | E129: 0 | G129: 18.11.00 | I129: 18.11.00 | J129: 18.11.00 | K129: 2000-11-18
B130: 2000-12-18 | C130: Anden trykning | D130: Trykkerier mv. | E130: 0 | G130: 18.12.00 | I130: 18.12.00 | J130: 18.12.00 | K130: 2000-12-18
B131: 18.13.00 | C131: Prepress- og premedia-arbejde | D131: Trykkerier mv. | E131: 0 | G131: =IFERROR(INDEX($I$2:$K$737,MATCH(B131,$K$2:$K$737,0),2),B131) -> 18.13.00 | I131: 18.13.00 | J131: 18.13.00 | K131: 18.13.00
B132: 18.14.00 | C132: Bogbinding og lignende serviceydelser | D132: Trykkerier mv. | E132: 0 | G132: 18.14.00 | I132: 18.14.00 | J132: 18.14.00 | K132: 18.14.00
B133: 18.20.00 | C133: Reproduktion af indspillede medier | D133: Trykkerier mv. | E133: 0 | G133: 18.20.00 | I133: 18.20.00 | J133: 18.20.00 | K133: 18.20.00
B134: 2000-10-19 | C134: Fremstilling af koks mv. | D134: Olieraffinaderier mv. | E134: 0 | G134: 19.10.00 | I134: 19.10.00 | J134: 19.10.00 | K134: 2000-10-19
B135: 19.20.00 | C135: Fremstilling af raffinerede mineralolieprodukter | D135: Olieraffinaderier mv. | E135: 0 | G135: 19.20.00 | I135: 19.20.00 | J135: 19.20.00 | K135: 19.20.00
B136: 2000-11-20 | C136: Fremstilling af industrigasser | D136: Fremst. af basiskemikalier | E136: 0 | G136: 20.11.00 | I136: 20.11.00 | J136: 20.11.00 | K136: 2000-11-20
B137: 2000-12-20 | C137: Fremstilling af farvestoffer og pigmenter | D137: Fremst. af basiskemikalier | E137: 0 | G137: 20.12.00 | I137: 20.12.00 | J137: 20.12.00 | K137: 2000-12-20
B138: 20.13.00 | C138: Fremstilling af andre uorganiske basiskemikalier | D138: Fremst. af basiskemikalier | E138: 0 | G138: 20.13.00 | I138: 20.13.00 | J138: 20.13.00 | K138: 20.13.00
B139: 20.14.00 | C139: Fremstilling af andre organiske basiskemikalier | D139: Fremst. af basiskemikalier | E139: 0 | G139: 20.14.00 | I139: 20.14.00 | J139: 20.14.00 | K139: 20.14.00
B140: 20.15.00 | C140: Fremstilling af gødningsstoffer og nitrogenprodukter | D140: Fremst. af basiskemikalier | E140: 0 | G140: 20.15.00 | I140: 20.15.00 | J140: 20.15.00 | K140: 20.15.00
B141: 20.16.00 | C141: Fremstilling af plast i ubearbejdet form | D141: Fremst. af basiskemikalier | E141: 0 | G141: 20.16.00 | I141: 20.16.00 | J141: 20.16.00 | K141: 20.16.00
B142: 20.17.00 | C142: Fremstilling af syntetisk gummi i ubearbejdet form | D142: Fremst. af basiskemikalier | E142: 0 | G142: 20.17.00 | I142: 20.17.00 | J142: 20.17.00 | K142: 20.17.00
B143: 20.20.00 | C143: Fremstilling af pesticider og andre agrokemiske produkter | D143: Fremst. af basiskemikalier | E143: 0 | G143: 20.20.00 | I143: 20.20.00 | J143: 20.20.00 | K143: 20.20.00
B144: 20.30.00 | C144: Fremstilling af maling, lak og lignende overfladebehandlingsmidler, trykfarver samt tætningsmaterialer | D144: Fremst. af maling og sæbe mv. | E144: 0 | G144: 20.30.00 | I144: 20.30.00 | J144: 20.30.00 | K144: 20.30.00
B145: 20.41.00 | C145: Fremstilling af sæbe, rengørings- og rensemidler samt poleremidler | D145: Fremst. af maling og sæbe mv. | E145: 0 | G145: 20.41.00 | I145: 20.41.00 | J145: 20.41.00 | K145: 20.41.00
B146: 20.42.00 | C146: Fremstilling af parfume, hårshampoo, tandpasta mv. | D146: Fremst. af maling og sæbe mv. | E146: 0 | G146: 20.42.00 | I146: 20.42.00 | J146: 20.42.00 | K146: 20.42.00
B147: 20.51.00 | C147: Fremstilling af sprængstoffer | D147: Fremst. af maling og sæbe mv. | E147: 0 | G147: 20.59.00 | I147: 20.51.00 | J147: 20.59.00 | K147: 20.51.00
B148: 20.52.00 | C148: Fremstilling af lim | D148: Fremst. af maling og sæbe mv. | E148: 0 | G148: 20.59.00 | I148: 20.52.00 | J148: 20.59.00 | K148: 20.52.00
B149: 20.53.00 | C149: Fremstilling af æteriske olier | D149: Fremst. af maling og sæbe mv. | E149: 0 | G149: 20.59.00 | I149: 20.53.00 | J149: 20.59.00 | K149: 20.53.00
B150: 20.59.00 | C150: Fremstilling af andre kemiske produkter i.a.n. | D150: Fremst. af maling og sæbe mv. | E150: 0 | G150: 20.59.00 | I150: 20.59.00 | J150: 20.59.00 | K150: 20.59.00
B151: 20.60.00 | C151: Fremstilling af kemofibre | D151: Fremst. af maling og sæbe mv. | E151: 0 | G151: 20.60.00 | I151: 20.60.00 | J151: 20.60.00 | K151: 20.60.00
B152: 2000-10-21 | C152: Fremstilling af farmaceutiske råvarer | D152: Medicinalindustri | E152: 0 | G152: 21.10.00 | I152: 21.10.00 | J152: 21.10.00 | K152: 2000-10-21
B153: 21.20.00 | C153: Fremstilling af farmaceutiske præparater | D153: Medicinalindustri | E153: 0 | G153: 21.20.00 | I153: 21.20.00 | J153: 21.20.00 | K153: 21.20.00
B154: 2000-11-22 | C154: Fremstilling af gummidæk og gummislanger; vulkanisering af dæk | D154: Plast- og gummiindustri | E154: 0 | G154: 22.11.00 | I154: 22.11.00 | J154: 22.11.00 | K154: 2000-11-22
B155: 22.19.00 | C155: Fremstilling af andre gummiprodukter | D155: Plast- og gummiindustri | E155: 0 | G155: 22.12.00 | I155: 22.19.00 | J155: 22.12.00 | K155: 22.19.00
B156: 22.21.00 | C156: Fremstilling af plader, ark, rør og slanger samt profiler af plast | D156: Plast- og gummiindustri | E156: 0 | G156: 22.21.00 | I156: 22.21.00 | J156: 22.21.00 | K156: 22.21.00
B157: 22.22.00 | C157: Fremstilling af plastemballage | D157: Plast- og gummiindustri | E157: 0 | G157: 22.22.00 | I157: 22.22.00 | J157: 22.22.00 | K157: 22.22.00
B158: 22.23.00 | C158: Fremstilling af bygningsartikler af plast | D158: Plast- og gummiindustri | E158: 0 | G158: 22.24.00 | I158: 22.23.00 | J158: 22.24.00 | K158: 22.23.00
B159: 22.29.00 | C159: Fremstilling af andre plastprodukter | D159: Plast- og gummiindustri | E159: 0 | G159: 22.26.00 | I159: 22.29.00 | J159: 22.26.00 | K159: 22.29.00
B160: 2000-11-23 | C160: Fremstilling af planglas | D160: Glasindustri og keramisk industri | E160: 0 | G160: 23.11.00 | I160: 23.11.00 | J160: 23.11.00 | K160: 2000-11-23
B161: 2000-12-23 | C161: Formning og forarbejdning af planglas | D161: Glasindustri og keramisk industri | E161: 0 | G161: 23.12.00 | I161: 23.12.00 | J161: 23.12.00 | K161: 2000-12-23
B162: 23.13.00 | C162: Fremstilling af flasker, drikkeglas mv. | D162: Glasindustri og keramisk industri | E162: 0 | G162: 23.13.00 | I162: 23.13.00 | J162: 23.13.00 | K162: 23.13.00
B163: 23.14.00 | C163: Fremstilling af glasfiber | D163: Glasindustri og keramisk industri | E163: 0 | G163: 23.14.00 | I163: 23.14.00 | J163: 23.14.00 | K163: 23.14.00
B164: 23.19.00 | C164: Fremstilling og bearbejdning af andet glas (herunder teknisk glas) | D164: Glasindustri og keramisk industri | E164: 0 | G164: 23.15.00 | I164: 23.19.00 | J164: 23.15.00 | K164: 23.19.00
B165: 23.20.00 | C165: Fremstilling af ildfaste produkter | D165: Glasindustri og keramisk industri | E165: 0 | G165: 23.20.00 | I165: 23.20.00 | J165: 23.20.00 | K165: 23.20.00
B166: 23.31.00 | C166: Fremstilling af keramiske teglsten og gulvfliser | D166: Betonindustri og teglværker | E166: 0 | G166: 23.31.00 | I166: 23.31.00 | J166: 23.31.00 | K166: 23.31.00
B167: 23.32.00 | C167: Fremstilling af mursten, teglsten og byggematerialer af brændt ler | D167: Betonindustri og teglværker | E167: 0 | G167: 23.32.00 | I167: 23.32.00 | J167: 23.32.00 | K167: 23.32.00
B168: 23.41.00 | C168: Fremstilling af keramiske husholdningsartikler og pyntegenstande | D168: Glasindustri og keramisk industri | E168: 0 | G168: 23.41.00 | I168: 23.41.00 | J168: 23.41.00 | K168: 23.41.00
B169: 23.42.00 | C169: Fremstilling af keramiske sanitetsartikler | D169: Glasindustri og keramisk industri | E169: 0 | G169: 23.42.00 | I169: 23.42.00 | J169: 23.42.00 | K169: 23.42.00
B170: 23.43.00 | C170: Fremstilling af keramiske isolatorer og isoleringsdele | D170: Glasindustri og keramisk industri | E170: 0 | G170: 23.43.00 | I170: 23.43.00 | J170: 23.43.00 | K170: 23.43.00
B171: 23.44.00 | C171: Fremstilling af andre keramiske produkter til teknisk brug | D171: Glasindustri og keramisk industri | E171: 0 | G171: 23.44.00 | I171: 23.44.00 | J171: 23.44.00 | K171: 23.44.00
B172: 23.49.00 | C172: Fremstilling af andre keramiske produkter | D172: Glasindustri og keramisk industri | E172: 0 | G172: 23.45.00 | I172: 23.49.00 | J172: 23.45.00 | K172: 23.49.00
B173: 23.51.00 | C173: Fremstilling af cement | D173: Betonindustri og teglværker | E173: 0 | G173: 23.51.00 | I173: 23.51.00 | J173: 23.51.00 | K173: 23.51.00
B174: 23.52.00 | C174: Fremstilling af kalk og gips | D174: Betonindustri og teglværker | E174: 0 | G174: 23.52.00 | I174: 23.52.00 | J174: 23.52.00 | K174: 23.52.00
B175: 23.61.00 | C175: Fremstilling af byggematerialer af beton | D175: Betonindustri og teglværker | E175: 0 | G175: 23.61.00 | I175: 23.61.00 | J175: 23.61.00 | K175: 23.61.00
B176: 23.62.00 | C176: Fremstilling af byggematerialer af gips | D176: Betonindustri og teglværker | E176: 0 | G176: 23.62.00 | I176: 23.62.00 | J176: 23.62.00 | K176: 23.62.00
B177: 23.63.00 | C177: Fremstilling af færdigblandet beton | D177: Betonindustri og teglværker | E177: 0 | G177: 23.63.00 | I177: 23.63.00 | J177: 23.63.00 | K177: 23.63.00
B178: 23.64.00 | C178: Fremstilling af mørtel | D178: Betonindustri og teglværker | E178: 0 | G178: 23.64.00 | I178: 23.64.00 | J178: 23.64.00 | K178: 23.64.00
B179: 23.65.00 | C179: Fremstilling af fibercement | D179: Betonindustri og teglværker | E179: 0 | G179: 23.65.00 | I179: 23.65.00 | J179: 23.65.00 | K179: 23.65.00
B180: 23.69.00 | C180: Fremstilling af andre beton-, gips- og cementprodukter | D180: Betonindustri og teglværker | E180: 0 | G180: 23.66.00 | I180: 23.69.00 | J180: 23.66.00 | K180: 23.69.00
B181: 23.70.00 | C181: Tilhugning, tilskæring og færdigbearbejdning af sten | D181: Betonindustri og teglværker | E181: 0 | G181: 23.70.00 | I181: 23.70.00 | J181: 23.70.00 | K181: 23.70.00
B182: 23.91.00 | C182: Fremstilling af slibemidler | D182: Betonindustri og teglværker | E182: 0 | G182: 23.91.00 | I182: 23.91.00 | J182: 23.91.00 | K182: 23.91.00
B183: 23.99.10 | C183: Fremstilling af asfalt og tagpap | D183: Betonindustri og teglværker | E183: 0 | G183: 23.99.10 | I183: 23.99.10 | J183: 23.99.10 | K183: 23.99.10
B184: 23.99.90 | C184: Fremstilling af andre ikke-metalholdige mineralske produkter i.a.n. | D184: Betonindustri og teglværker | E184: 0 | G184: 23.99.90 | I184: 23.99.90 | J184: 23.99.90 | K184: 23.99.90
B185: 2000-10-24 | C185: Fremstilling af råjern og råstål samt jernlegeringer | D185: Fremst. af metal | E185: 0 | G185: 24.10.00 | I185: 24.10.00 | J185: 24.10.00 | K185: 2000-10-24
B186: 24.20.00 | C186: Fremstilling af rør og hule profiler og tilhørende fittings af stål | D186: Fremst. af metal | E186: 0 | G186: 24.20.00 | I186: 24.20.00 | J186: 24.20.00 | K186: 24.20.00
B187: 24.31.00 | C187: Fremstilling af stænger ved koldtrækning | D187: Fremst. af metal | E187: 0 | G187: 24.31.00 | I187: 24.31.00 | J187: 24.31.00 | K187: 24.31.00
B188: 24.32.00 | C188: Fremstilling af stålbånd ved koldvalsning | D188: Fremst. af metal | E188: 0 | G188: 24.32.00 | I188: 24.32.00 | J188: 24.32.00 | K188: 24.32.00
B189: 24.33.00 | C189: Koldbehandling | D189: Fremst. af metal | E189: 0 | G189: 24.33.00 | I189: 24.33.00 | J189: 24.33.00 | K189: 24.33.00
B190: 24.34.00 | C190: Fremstilling af tråd ved koldtrækning | D190: Fremst. af metal | E190: 0 | G190: 24.34.00 | I190: 24.34.00 | J190: 24.34.00 | K190: 24.34.00
B191: 24.41.00 | C191: Fremstilling af ædelmetaller | D191: Fremst. af metal | E191: 0 | G191: 24.41.00 | I191: 24.41.00 | J191: 24.41.00 | K191: 24.41.00
B192: 24.42.00 | C192: Fremstilling af aluminium | D192: Fremst. af metal | E192: 0 | G192: 24.42.00 | I192: 24.42.00 | J192: 24.42.00 | K192: 24.42.00
B193: 24.43.00 | C193: Fremstilling af bly, zink og tin | D193: Fremst. af metal | E193: 0 | G193: 24.43.00 | I193: 24.43.00 | J193: 24.43.00 | K193: 24.43.00
B194: 24.44.00 | C194: Fremstilling af kobber | D194: Fremst. af metal | E194: 0 | G194: 24.44.00 | I194: 24.44.00 | J194: 24.44.00 | K194: 24.44.00
B195: 24.45.00 | C195: Anden fremstilling af ikke-jernholdige metaller | D195: Fremst. af metal | E195: 0 | G195: =IFERROR(INDEX($I$2:$K$737,MATCH(B195,$K$2:$K$737,0),2),B195) -> 24.45.00 | I195: 24.45.00 | J195: 24.45.00 | K195: 24.45.00
B196: 24.46.00 | C196: Oparbejdning af nukleart brændsel | D196: Fremst. af metal | E196: 0 | G196: 24.46.00 | I196: 24.46.00 | J196: 24.46.00 | K196: 24.46.00
B197: 24.51.00 | C197: Støbning af jernprodukter | D197: Fremst. af metal | E197: 0 | G197: 24.51.00 | I197: 24.51.00 | J197: 24.51.00 | K197: 24.51.00
B198: 24.52.00 | C198: Støbning af stålprodukter | D198: Fremst. af metal | E198: 0 | G198: 24.52.00 | I198: 24.52.00 | J198: 24.52.00 | K198: 24.52.00
B199: 24.53.00 | C199: Støbning af letmetalprodukter | D199: Fremst. af metal | E199: 0 | G199: 24.53.00 | I199: 24.53.00 | J199: 24.53.00 | K199: 24.53.00
B200: 24.54.00 | C200: Støbning af andre ikke-jernholdige metalprodukter | D200: Fremst. af metal | E200: 0 | G200: 24.54.00 | I200: 24.54.00 | J200: 24.54.00 | K200: 24.54.00
... 544 more rows
